Cogmind - Beta 16.1 @@@ ROGUE MODE // 2026.03.28 @ 09:57:19 Player: ash Result: Self-destructed Performance ------------- Evolutions (4) 2000 Regions Visited (13) 2600 Robots Destroyed (111) 555 Value Destroyed (3295) 3295 Prototype IDs (34) 680 Alien Tech Used (0) 0 Bonus (1652) 1652 TOTAL SCORE: 10782 Bonus ------- High Alert Combat Kills 66 Follower Combat Kills 900 Entered DSFs 500 Aligned with FarCom 300 Friendly Fire -114 Cogmind --------- Core Integrity 839/850 Matter 298/300 Energy 325/325 System Corruption 1% Temperature Cool (0) Movement Treading (163) Location -6/Factory Parts ------- > --- POWER (2) -------- Backup Power III Antimatter Reactor > --- PROPULSION (4) --- Light Treads Armored Treads Heavy Treads > --- UTILITY (7) ------ Advanced Heat Sink High-capacity Storage Unit Structural Scanner Transport Network Coupler Advanced Targeting Computer Improved Light Armor Plating Improved Light Armor Plating > --- WEAPON (2) ------- Flak Gun Flak Gun > --- INVENTORY (20) --- Antimatter Reactor Light Treads Light Treads Light Treads Improved Heat Sink Improved Terrain Scan Processor Reactive Plating Heavy Particle Gun Heavy Particle Gun Flak Gun Flak Gun Coil Gun Improved Heavy Machine Gun Grenade Launcher Scythe Peak State ------------ > --- POWER ------------ Backup Power III Antimatter Reactor > --- PROPULSION ------- Light Treads Armored Treads Heavy Treads > --- UTILITY ---------- Advanced Heat Sink Large Storage Unit Transport Network Coupler Advanced Targeting Computer Improved Light Armor Plating Improved Light Armor Plating Reactive Plating > --- WEAPON ----------- Gatling Laser Gatling Laser > --- INVENTORY -------- Antimatter Reactor Light Treads Light Treads Light Treads Improved Heat Sink Structural Scanner Heavy Particle Gun Heavy Particle Gun Heavy Particle Cannon Improved Assault Rifle Improved Assault Rifle Improved Heavy Machine Gun Grenade Launcher Scythe [Rating: 57] Favorites ----------- Power Heavy Ion Engine Engine Heavy Ion Engine Power Core Nuclear Core Reactor Antimatter Reactor Propulsion Aluminum Leg Treads Armored Treads Leg Aluminum Leg Utility Large Storage Unit Device Structural Scanner Storage Large Storage Unit Processor Transport Network Coupler Hackware Authchip [Processor] Protection Light Armor Plating Weapon Shotgun Energy Gun Gatling Laser Energy Cannon Heavy Particle Cannon Ballistic Gun Shotgun Launcher Grenade Launcher Impact Weapon Mace Slashing Weapon Scythe Build | -11 -10 -10 -9 -9 -9 -8 -8 -8 -7 -7 -7 -7 -6 ------- Run | Yrd Mat Min Mat Min Exi Min Mat Sto Fac Was Fac DSF Fac Slots Evolved 8 | . . . 2 . . . 2 . 2 . . . 2 Power 1 | . . . . . . . . . . . . . 1 Propulsion 2 | . . . . . . . 2 . . . . . . Utility 5 | . . . 2 . . . . . 2 . . . 1 Weapon . | . . . . . . . . . . . . . . Parts Attached 97 | . 11 . 27 3 1 . 25 13 6 2 . 3 6 Power 7 | . 2 . . 1 . . 3 . . 1 . . . Engine 4 | . 2 . . 1 . . 1 . . . . . . Core 2 | . . . . . . . 2 . . . . . . Reactor 1 | . . . . . . . . . . 1 . . . Propulsion 28 | . 3 . 8 1 . . 8 6 1 1 . . . Treads 12 | . . . . . . . 4 6 1 1 . . . Leg 16 | . 3 . 8 1 . . 4 . . . . . . Wheel . | . . . . . . . . . . . . . . Hover . | . . . . . . . . . . . . . . Flight . | . . . . . . . . . . . . . . Utility 34 | . 4 . 11 1 . . 4 4 3 . . 3 4 Device 10 | . 1 . 3 . . . 3 2 . . . . 1 Storage 3 | . 2 . . . . . . . . . . . 1 Processor 5 | . 1 . 2 . . . . . 2 . . . . Hackware 5 | . . . 1 . . . 1 . . . . 3 . Protection 11 | . . . 5 1 . . . 2 1 . . . 2 Artifact . | . . . . . . . . . . . . . . Weapon 28 | . 2 . 8 . 1 . 10 3 2 . . . 2 Energy Gun 6 | . . . . . . . 3 1 2 . . . . Energy Cannon 7 | . . . 5 . 1 . 1 . . . . . . Ballistic Gun 12 | . 2 . 2 . . . 5 1 . . . . 2 Ballistic Cannon . | . . . . . . . . . . . . . . Launcher 1 | . . . 1 . . . . . . . . . . Special Weapon . | . . . . . . . . . . . . . . Impact Weapon 1 | . . . . . . . 1 . . . . . . Slashing Weapon 1 | . . . . . . . . 1 . . . . . Piercing Weapon . | . . . . . . . . . . . . . . Special Melee Weapon . | . . . . . . . . . . . . . . Unidentified Prototypes 7 | . 1 . 2 . . . 2 2 . . . . . Parts Lost 18 | . . . . . . . 16 2 . . . . . Power 2 | . . . . . . . 2 . . . . . . Propulsion 9 | . . . . . . . 8 1 . . . . . Utility 3 | . . . . . . . 2 1 . . . . . Weapon 4 | . . . . . . . 4 . . . . . . Highest Loss Streak 7 | . . . . . . . 7 2 . . . . . To Critical Strikes . | . . . . . . . . . . . . . . Average Backups 13 | . 10 12 14 15 15 15 13 13 14 15 15 15 14 Power 1 | . . 1 1 1 1 1 1 . 1 1 1 1 1 Propulsion 2 | . 2 2 1 2 2 2 . 2 4 3 3 3 3 Utility 3 | . 2 5 3 3 3 3 2 3 2 3 3 3 2 Weapon 7 | . 4 4 7 9 9 9 8 6 7 8 8 8 8 Tool/Special . | . . . . . . . . . . . . . . Unused Backups 34 | . 10 . 6 . . . 6 1 . 1 . 1 9 Power 7 | . 2 . 1 . . . 2 . . 1 . . 1 Propulsion 4 | . 1 . . . . . . 1 . . . . 2 Utility 5 | . 2 . . . . . 1 . . . . 1 1 Weapon 18 | . 5 . 5 . . . 3 . . . . . 5 Tool/Special . | . . . . . . . . . . . . . . Average Slot Usage (%) 96 | . 99 100 99 100 91 88 89 99 99 94 92 86 92 Engine 9 | . 14 14 11 11 11 11 4 9 7 2 . . 5 Treads 11 | . . . . . . . 10 36 30 25 23 23 20 Leg 14 | . 28 28 22 22 22 22 16 . . . . . . Device 11 | . 8 14 13 11 11 11 13 9 14 15 15 8 12 Storage 10 | . 14 14 11 11 11 11 9 9 7 7 7 7 6 Processor 9 | . 4 . 10 11 11 11 9 9 14 15 15 15 13 Protection 6 | . . . 8 11 11 11 . 8 7 7 7 7 13 Energy Gun 2 | . . . . . . . 2 . 13 15 15 15 3 Energy Cannon 4 | . . . 9 11 11 11 1 2 1 . . . . Ballistic Gun 12 | . 27 28 11 11 3 . 13 13 . . . . 9 Peak Build Rating 57 | . 13 13 21 20 34 34 37 50 34 47 47 50 57 Average Rating 27 | . 12 13 18 20 30 34 26 30 31 42 47 46 55 On Entrance 27 | 6 6 13 13 20 20 34 34 32 26 34 47 47 46 Avg Prop Armor Cover (%) . | . . . . . . . . . . . . . . Naked Turns . | . . . . . . . . . . . . . . Heaviest Build 74 | 13 35 35 41 41 50 50 50 53 54 49 49 49 74 Greatest Support 110 | 20 20 20 20 20 20 20 80 80 80 110 110 110 110 Greatest Overweight (x) 11 | . 1 1 2 2 2 2 11 . . . . . . Average Overweight (x) . | . . 1 1 2 2 2 . . . . . . . Largest Inventory Capacity 20 | . 15 15 15 15 15 15 15 15 15 15 15 15 20 Average Capacity 14 | . 11 15 15 15 15 15 15 14 15 15 15 15 16 Most Carried 15 | . 12 12 15 15 15 15 15 15 15 15 15 15 15 Average Carried 13 | . 10 12 14 14 15 15 14 14 14 15 15 15 14 Final Capacity 20 | 8 15 15 15 15 15 15 15 15 15 15 15 15 20 Final Carried 15 | 6 12 12 15 15 15 15 15 15 15 15 15 15 15 Class Distribution -------------------- 35% | Scavenger-Skirmisher 34% | Scavenger-Mutant 27% | Mutant Dominant Class ---------------- Mutant | -10/Materials Mutant | -10/Mines Mutant | -9/Materials Scavenger-Mutant | -9/Mines Scavenger-Mutant | -9/Exiles Scavenger-Mutant | -8/Mines Scavenger-Skirmisher | -8/Materials Scavenger-Skirmisher | -8/Storage Scavenger-Skirmisher | -7/Factory Scavenger-Skirmisher | -7/Waste Scavenger-Skirmisher | -7/Factory Scavenger-Mutant | -7/DSF Scavenger-Skirmisher | -6/Factory Resources | -11 -10 -10 -9 -9 -9 -8 -8 -8 -7 -7 -7 -7 -6 ----------- Run | Yrd Mat Min Mat Min Exi Min Mat Sto Fac Was Fac DSF Fac Matter Collected 2843 | 200 302 . 494 106 . 20 555 863 80 . . 50 173 Remotely . | . . . . . . . . . . . . . . Salvage Created 4580 | . 357 . 1186 184 . 111 773 1520 80 214 . 50 105 Parts 249 | . 21 . 77 6 . 4 49 84 1 3 . 4 . Haulers Intercepted 20 | . 2 . 6 . . . 5 5 . . . 1 1 Recyclers Shooed 4 | . 1 . 3 . . . . . . . . . . Parts Field Recycled . | . . . . . . . . . . . . . . Retrieved Matter . | . . . . . . . . . . . . . . Parts Self-Destructed . | . . . . . . . . . . . . . . Prevented . | . . . . . . . . . . . . . . Parts Restored . | . . . . . . . . . . . . . . Kills | -11 -10 -10 -9 -9 -9 -8 -8 -8 -7 -7 -7 -7 -6 ------- Run | Yrd Mat Min Mat Min Exi Min Mat Sto Fac Was Fac DSF Fac Combat Hostiles Destroyed 88 | . 9 . 26 4 . 3 14 28 2 1 . . 1 Guns 59 | . 9 . 14 2 . . 11 19 2 1 . . 1 Cannons 14 | . . . 8 2 . . . 4 . . . . . AOE 14 | . . . 4 . . 3 3 4 . . . . . Classes Destroyed 13 | . 3 . 2 1 . . 1 4 1 1 . . . Worker 1 | . . . 1 . . . . . . . . . . Builder 1 | . . . . . . . . 1 . . . . . Hauler 20 | . 2 . 6 . . . 5 5 . . . 1 1 Recycler 1 | . . . . . . . . 1 . . . . . Swarmer 22 | . 3 . 10 . . . 5 4 . . . . . Grunt 40 | . 6 . 9 3 . 2 7 12 . . . . 1 Brawler 2 | . . . . 1 . 1 . . . . . . . Duelist 1 | . . . . . . . . 1 . . . . . Sentry 19 | . . . 7 . . . 1 10 1 . . . . Hunter 1 | . . . . . . . . 1 . . . . . Programmer 1 | . . . . . . . . . 1 . . . . Heavy 1 | . . . . . . . 1 . . . . . . Compactor 1 | . . . . . . . . . . 1 . . . Best Kill Streak 7 | . 3 . 6 2 . 3 4 7 1 1 . 1 1 Combat Bots Only 6 | . 3 . 4 2 . 3 4 6 1 1 . . 1 Max Kills in Single Turn 3 | . 1 . 3 1 . 3 3 2 1 1 . 1 1 Gunslinging . | . . . . . . . . . . . . . . Exploded 3 | . . . 3 . . 3 3 2 . . . . . Melee . | . . . . . . . . . . . . . . Uniques/NPCs Destroyed . | . . . . . . . . . . . . . . Combat | -11 -10 -10 -9 -9 -9 -8 -8 -8 -7 -7 -7 -7 -6 -------- Run | Yrd Mat Min Mat Min Exi Min Mat Sto Fac Was Fac DSF Fac Hostile Shots Fired 518 | . 50 . 132 22 . 4 139 136 26 . . . 9 Missed 142 | . 14 . 39 3 . 1 31 40 11 . . . 3 Hits 376 | . 36 . 93 19 . 3 108 96 15 . . . 6 Projectile 376 | . 36 . 93 19 . 3 108 96 15 . . . 6 AOE 1 | . . . . . . . . . . . . . 1 Critical Strikes 16 | . 1 . 5 . . . 5 5 . . . . . Damage Taken 5857 | . 359 . 1201 247 . 50 1993 1435 138 . . 84 350 Core 723 | . 15 . 185 38 . . 349 109 16 . . . 11 Absorbed by Shields . | . . . . . . . . . . . . . . Regen/Repaired (Parts) 84 | . . . . . . . . . 14 . . . 70 Core Remaining (%) 70 | 100 . 94 . . . 44 . 16 . . . 97 . Volleys Fired 281 | . 26 . 65 12 . 2 63 91 5 3 . 2 12 Largest 2 | . 2 . 2 2 . 1 2 2 2 2 . 2 2 Hottest 160 | . 46 . 136 98 . 100 110 130 160 160 . 160 160 Shots Fired 553 | . 52 . 127 24 . 2 124 180 10 6 . 4 24 Gun 446 | . 52 . 68 12 . . 113 157 10 6 . 4 24 Cannon 102 | . . . 57 12 . 2 10 21 . . . . . Launcher 5 | . . . 2 . . . 1 2 . . . . . Special . | . . . . . . . . . . . . . . Kinetic 373 | . 52 . 68 12 . . 75 150 . . . . 16 Thermal 175 | . . . 57 12 . 2 48 28 10 6 . 4 8 Explosive 5 | . . . 2 . . . 1 2 . . . . . Electromagnetic . | . . . . . . . . . . . . . . Robot Hit Streak 18 | . 9 . 18 16 . . 12 13 14 11 . 14 10 Robot Miss Streak 6 | . 6 . 3 1 . . 2 2 1 1 . 2 4 Penetration Max . | . . . . . . . . . . . . . . Secondary Targets 4 | . 1 . . . . . 2 1 . . . . . Max Gunslinging Chain 1 | . 1 . . . . . 1 1 . . . . . Shots Hit Robots 410 | . 38 . 93 21 . . 85 132 9 5 . 4 23 Core Hits 210 | . 23 . 44 7 . 4 34 55 7 4 . 4 28 Critical Kills . | . . . . . . . . . . . . . . Critical Parts Destroyed . | . . . . . . . . . . . . . . Critical Strikes 2 | . . . . . . . 2 . . . . . . Burn 2 | . . . . . . . 2 . . . . . . Melee Attacks 10 | . . . . . . . 4 6 . . . . . Impact 5 | . . . . . . . 4 1 . . . . . Slashing 5 | . . . . . . . . 5 . . . . . Piercing . | . . . . . . . . . . . . . . Sneak Attacks . | . . . . . . . . . . . . . . Combat Hostiles . | . . . . . . . . . . . . . . Follow-up Attacks . | . . . . . . . . . . . . . . Damage Inflicted 8926 | . 609 4 1871 433 . 344 1716 2754 286 168 . 124 617 Guns 6339 | . 594 . 858 148 . . 1372 2172 286 168 . 124 617 Cannons 1753 | . . . 894 285 . 99 100 375 . . . . . Explosions 796 | . . . 113 . . 245 241 197 . . . . . Melee . | . . . . . . . . . . . . . . Ramming 38 | . 15 4 6 . . . 3 10 . . . . . Kinetic 4904 | . 594 . 858 148 . . 846 2042 . . . . 416 Thermal 3674 | . . . 894 285 . 344 867 505 286 168 . 124 201 Explosive 310 | . . . 113 . . . . 197 . . . . . Electromagnetic . | . . . . . . . . . . . . . . Impact . | . . . . . . . . . . . . . . Slashing . | . . . . . . . . . . . . . . Piercing . | . . . . . . . . . . . . . . Highest Corruption 3 | . . . . . . . . 3 1 1 1 1 1 Average Corruption 1 | . . . . . . . . 2 1 1 1 1 1 Corruption Purged . | . . . . . . . . . . . . . . Corruption Blocked . | . . . . . . . . . . . . . . Effects 13 | . . . . . . . . 9 . 2 . 2 . Matter Fused 2 | . . . . . . . . 1 . . . 1 . Heat Flow Errors 3 | . . . . . . . . 1 . 2 . . . Energy Discharges 4 | . . . . . . . . 4 . . . . . Misfires 1 | . . . . . . . . 1 . . . . . Alerts 2 | . . . . . . . . 1 . . . 1 . Weapon Failures 1 | . . . . . . . . 1 . . . . . Overload Shots . | . . . . . . . . . . . . . . Overflow Damage 73 | . . . . . . 18 27 28 . . . . . Projectiles 18 | . . . . . . 18 . . . . . . . Explosions 55 | . . . . . . . 27 28 . . . . . Melee . | . . . . . . . . . . . . . . Knockbacks . | . . . . . . . . . . . . . . Impact . | . . . . . . . . . . . . . . Kinetic . | . . . . . . . . . . . . . . Secondary . | . . . . . . . . . . . . . . Self-Inflicted Damage 61 | . . . . . . . 61 . . . . . . Shots 1 | . . . . . . . 1 . . . . . . Rammed 3 | . . . . . . . 2 1 . . . . . Targets Rammed 13 | . 5 1 2 . . . 3 2 . . . . . Kicked 9 | . 5 1 2 . . . 1 . . . . . . Crushed 1 | . . . . . . . . 1 . . . . . Highest Temperature 319 | . 8 . 187 96 . 11 316 319 144 277 . . 84 Average Temperature 73 | . 3 . 60 43 . 5 94 81 63 89 . . 34 Received Heat Transfer 2319 | . 108 . 516 141 . 27 756 684 24 . . . 63 Effects 1 | . . . . . . . . 1 . . . . . Damage (minor) 1 | . . . . . . . . 1 . . . . . Siege Activations . | . . . . . . . . . . . . . . Martial Activations . | . . . . . . . . . . . . . . Shielding Activations . | . . . . . . . . . . . . . . Robots Disrupted . | . . . . . . . . . . . . . . Combat Hostiles . | . . . . . . . . . . . . . . Robots Corrupted . | . . . . . . . . . . . . . . Combat Hostiles . | . . . . . . . . . . . . . . Parts Fried . | . . . . . . . . . . . . . . Impact Corruptions . | . . . . . . . . . . . . . . Robots Melted 2 | . . . . . . . . 1 . . . . 1 Combat Hostiles 1 | . . . . . . . . 1 . . . . . Parts Melted 11 | . . . 2 . . . . 3 4 . . . 2 Heat Transferred 6465 | . . . 1517 407 . 400 1652 814 575 375 . 275 450 Parts Sabotaged . | . . . . . . . . . . . . . . Parts Stolen . | . . . . . . . . . . . . . . Parts Stripped . | . . . . . . . . . . . . . . Power Chain Reactions . | . . . . . . . . . . . . . . Alert | -11 -10 -10 -9 -9 -9 -8 -8 -8 -7 -7 -7 -7 -6 ------- Run | Yrd Mat Min Mat Min Exi Min Mat Sto Fac Was Fac DSF Fac Maximum Alert Level 3 | . . . 1 1 . . . 2 1 . . 2 3 Low Security (%) 72 | . 100 100 84 68 . 100 100 54 19 100 100 25 9 Level 1 14 | . . . 15 31 . . . 16 80 . . 47 20 Level 2 6 | . . . . . . . . 29 . . . 27 9 Level 3 5 | . . . . . . . . . . . . . 59 Level 4 . | . . . . . . . . . . . . . . Level 5 . | . . . . . . . . . . . . . . High Security . | . . . . . . . . . . . . . . Max Security . | . . . . . . . . . . . . . . Sterilizations 1 | . . . . . . . . . . . . 1 . Peak Influence 954 | . 105 . 348 220 . 94 123 506 366 107 . 408 954 Initial 226 | . . . . 135 . . 28 8 226 107 . . 214 Average 164 | . 31 . 128 185 . 79 43 221 273 50 . 241 597 Influence Increases 4611 | . 272 . 809 115 . 94 515 932 260 . . 408 1206 Destroy 0b10 Robot/C 2300 | . 180 . 520 80 . 60 280 560 40 . . 160 420 Destroy 0b10 Robot/NC 170 | . 10 . 35 . . . 25 35 . . . 15 50 Destroy Leader 570 | . 44 . 152 20 . 10 70 170 20 . . 20 64 Allied During Kill 598 | . . . . . . . . . . . . 195 403 Successful Hack 175 | . 23 . 33 . . . 40 15 . . . . 64 Select Force Hacks 30 | . . . . . . . . 30 . . . . . Disable Machine 165 | . . . 15 15 . . 15 45 . . . . 75 Anti-Garrison Action 200 | . . . . . . . . . 200 . . . . Destroy Structure 253 | . . . 24 . . 24 40 32 . . . 18 115 Partial Spotted 15 | . . . . . . . . . . . . . 15 Lose Combat Pursuer 135 | . 15 . 30 . . . 45 45 . . . . . Influence Decreases 3657 | . 272 . 462 302 160 20 568 454 453 306 . . 660 Entered New Map 1097 | . . . . 212 160 . 46 13 273 199 . . 194 Time Decay 2224 | . 272 . 462 90 . 20 406 421 180 87 . . 286 Lost Part 136 | . . . . . . . 116 20 . . . . . Lost Ally 200 | . . . . . . . . . . 20 . . 180 Squads Dispatched 21 | . 1 . 3 . . . 3 7 1 . . 1 5 Investigation 7 | . . . 2 . . . . 3 1 . . . 1 Extermination 1 | . . . . . . . . . . . . . 1 Reinforcement 9 | . 1 . 1 . . . 3 1 . . . 1 2 Assault 1 | . . . . . . . . . . . . . 1 Garrison 3 | . . . . . . . . 3 . . . . . Intercept . | . . . . . . . . . . . . . . Searches Triggered . | . . . . . . . . . . . . . . Construction Impeded 1 | . . . . . . . . . . . . . 1 Haulers Reinforced 1 | . . . . . . . . . . . . . 1 Active Scanning Responses . | . . . . . . . . . . . . . . Cargo Convoy Interrupts . | . . . . . . . . . . . . . . Stealth | -11 -10 -10 -9 -9 -9 -8 -8 -8 -7 -7 -7 -7 -6 --------- Run | Yrd Mat Min Mat Min Exi Min Mat Sto Fac Was Fac DSF Fac Distress Signals 9 | . 3 . 4 . . . 1 1 . . . . . Communications Jammed . | . . . . . . . . . . . . . . Distress Signals . | . . . . . . . . . . . . . . Times Spotted 162 | . 15 1 44 4 . 3 30 38 2 1 . 6 18 Peak Tracking Total 7 | . 6 . 6 2 . 3 5 7 1 1 . 3 4 Tactical Retreats 7 | . 1 . 2 . . . 2 2 . . . . . Traps | -11 -10 -10 -9 -9 -9 -8 -8 -8 -7 -7 -7 -7 -6 ------- Run | Yrd Mat Min Mat Min Exi Min Mat Sto Fac Was Fac DSF Fac Traps Triggered 3 | . . . . . . . . 2 1 . . . . Indirectly . | . . . . . . . . . . . . . . Trap Hack Attempts . | . . . . . . . . . . . . . . Triggered . | . . . . . . . . . . . . . . Disarmed . | . . . . . . . . . . . . . . Reprogrammed . | . . . . . . . . . . . . . . Reused . | . . . . . . . . . . . . . . Traps Extracted . | . . . . . . . . . . . . . . Installed . | . . . . . . . . . . . . . . Triggered . | . . . . . . . . . . . . . . Machines | -11 -10 -10 -9 -9 -9 -8 -8 -8 -7 -7 -7 -7 -6 ---------- Run | Yrd Mat Min Mat Min Exi Min Mat Sto Fac Was Fac DSF Fac Machines Disabled 11 | . . . 1 1 . . 1 3 . . . . 5 Max in Single Turn 1 | . . . 1 1 . . 1 1 . . . . . Garrison Access 1 | . . . . . . . . . 1 . . . . Machines Repaired . | . . . . . . . . . . . . . . Machines Dismantled . | . . . . . . . . . . . . . . Machines Sabotaged . | . . . . . . . . . . . . . . Overloaded Fab Kills . | . . . . . . . . . . . . . . Hacking | -11 -10 -10 -9 -9 -9 -8 -8 -8 -7 -7 -7 -7 -6 --------- Run | Yrd Mat Min Mat Min Exi Min Mat Sto Fac Was Fac DSF Fac Machines Accessed 38 | . 7 . 10 . 2 . 5 7 2 . 1 . 4 Terminals 28 | . 6 . 8 . . . 5 5 . . 1 . 3 Fabricators . | . . . . . . . . . . . . . . Repair Stations 1 | . . . . . . . . . 1 . . . . Recycling Units 3 | . 1 . 1 . . . . 1 . . . . . Scanalyzers 2 | . . . 1 . . . . . . . . . 1 Garrison Access 2 | . . . . . . . . 1 1 . . . . Total Hacks 138 | . 29 . 34 . 24 . 17 17 3 . 1 . 13 Successful 85 | . 13 . 20 . 24 . 9 7 3 . 1 . 8 Failed 52 | . 16 . 13 . . . 8 10 . . . . 5 Catastrophic 6 | . . . . . . . 2 3 . . . . 1 Database Lockouts 1 | . . . 1 . . . . . . . . . . Manual 57 | . 10 . 20 . 1 . 11 7 1 . . . 7 Terminals 94 | . 24 . 28 . . . 17 13 . . 1 . 11 Fabricators . | . . . . . . . . . . . . . . Repair Stations 2 | . . . . . . . . . 2 . . . . Recycling Units 10 | . 5 . 3 . . . . 2 . . . . . Scanalyzers 5 | . . . 3 . . . . . . . . . 2 Garrison Access 3 | . . . . . . . . 2 1 . . . . Terminal Hacks 54 | . 7 . 8 . 24 . 4 4 . . 1 . 6 Record 23 | . . . . . 23 . . . . . . . . Part Schematic 1 | . 1 . . . . . . . . . . . . Robot Analysis 3 | . . . 2 . . . . . . . . . 1 Prototype ID Bank 2 | . 1 . . . . . . . . . . . 1 Open Door 2 | . . . . . . . . 2 . . . . . Open DSF 1 | . . . . . . . . . . . 1 . . Level Access Points 1 | . . . . . . . . . . . . . 1 Branch Access Points 2 | . . . 1 . . . 1 . . . . . . Terminal Index 2 | . 1 . . . . . . . . . . . 1 Scanalyzer Index 1 | . . . . . . . . 1 . . . . . Alert Level 2 | . 1 . 1 . . . . . . . . . . Locate Traps 5 | . 3 . 1 . . . 1 . . . . . . Dispatch Records 1 | . . . . . . . 1 . . . . . . Transport Status 1 | . . . . . . . . 1 . . . . . Hauler Manifests 2 | . . . 2 . . . . . . . . . . Zone Layout 4 | . . . 1 . . . 1 . . . . . 2 Proto ID Catalog 1 | . . . . . 1 . . . . . . . . Fabricator Hacks . | . . . . . . . . . . . . . . Repair Station Hacks 2 | . . . . . . . . . 2 . . . . Scan Component 1 | . . . . . . . . . 1 . . . . Repair 1 | . . . . . . . . . 1 . . . . Recycling Unit Hacks 2 | . 1 . 1 . . . . . . . . . . Retrieve Matter 1 | . . . 1 . . . . . . . . . . Retrieve Components 1 | . 1 . . . . . . . . . . . . Scanalyzer 2 | . . . 2 . . . . . . . . . . Insert Component 2 | . . . 2 . . . . . . . . . . Garrison Access Hacks . | . . . . . . . . . . . . . . Unauthorized Hacks 25 | . 5 . 9 . . . 5 3 1 . . . 2 Terminals 20 | . 5 . 7 . . . 5 1 . . . . 2 Track 6 | . 2 . 2 . . . 1 1 . . . . . Assimilate 2 | . . . . . . . 2 . . . . . . Botnet 12 | . 3 . 5 . . . 2 . . . . . 2 Fabricators . | . . . . . . . . . . . . . . Repair Stations . | . . . . . . . . . . . . . . Recycling Units 4 | . . . 2 . . . . 2 . . . . . Reject 1 | . . . 1 . . . . . . . . . . Recyclers 2 | . . . 1 . . . . 1 . . . . . Tunnel 1 | . . . . . . . . 1 . . . . . Scanalyzers . | . . . . . . . . . . . . . . Garrison Access 1 | . . . . . . . . . 1 . . . . Jam 1 | . . . . . . . . . 1 . . . . Data Cores Recovered 1 | . . . . . . . . . . . . . 1 Used 1 | . . . . . . . . . . . . . 1 Hacking Detections 31 | . 7 . 10 . . . 5 5 . . . . 4 Full Trace Events 7 | . 2 . 2 . . . . 2 . . . . 1 Feedback Events 1 | . . . . . . . . . . . . . 1 Corruption 1 | . . . . . . . . . . . . . 1 Feedback Blocked . | . . . . . . . . . . . . . . Robot Schematics Acquired . | . . . . . . . . . . . . . . Robots Built . | . . . . . . . . . . . . . . Authchips . | . . . . . . . . . . . . . . Time . | . . . . . . . . . . . . . . Total Robot Build Rating . | . . . . . . . . . . . . . . Part Schematics Acquired 1 | . 1 . . . . . . . . . . . . Parts Built . | . . . . . . . . . . . . . . Authchips . | . . . . . . . . . . . . . . Time . | . . . . . . . . . . . . . . Total Part Build Rating . | . . . . . . . . . . . . . . Part Studies Acquired . | . . . . . . . . . . . . . . Parts Repaired 1 | . . . . . . . . . 1 . . . . Time 26 | . . . . . . . . . 26 . . . . Parts Recycled . | . . . . . . . . . . . . . . Recycled Matter . | . . . . . . . . . . . . . . Retrieved Matter . | . . . . . . . . . . . . . . Retrieved Components 9 | . 9 . . . . . . . . . . . . Parts Scanalyzed . | . . . . . . . . . . . . . . Part Schematics Acquired . | . . . . . . . . . . . . . . Parts Damaged . | . . . . . . . . . . . . . . Bothacking | -11 -10 -10 -9 -9 -9 -8 -8 -8 -7 -7 -7 -7 -6 ------------ Run | Yrd Mat Min Mat Min Exi Min Mat Sto Fac Was Fac DSF Fac Used RIF Installer . | . . . . . . . . . . . . . . Robots Hacked . | . . . . . . . . . . . . . . Non-combat . | . . . . . . . . . . . . . . Combat . | . . . . . . . . . . . . . . Robot Hacks Applied . | . . . . . . . . . . . . . . Relay Couplers Released . | . . . . . . . . . . . . . . Fabnet Peak Effective % . | . . . . . . . . . . . . . . Robots Rewired . | . . . . . . . . . . . . . . Allies Hacked . | . . . . . . . . . . . . . . Hacks Repelled . | . . . . . . . . . . . . . . Allies | -11 -10 -10 -9 -9 -9 -8 -8 -8 -7 -7 -7 -7 -6 -------- Run | Yrd Mat Min Mat Min Exi Min Mat Sto Fac Was Fac DSF Fac Total Allies 20 | . . . . . . . . . . 20 . . . Largest Group 20 | . . . . . . . . . . 20 19 19 14 Highest-Rated Group 498 | . . . . . . . . . . 498 484 484 397 Highest-Rated Ally 35 | . . . . . . . . . . 35 35 35 35 Initial Warlord ECA Mod 9 | . . . . . . . . . . . . . 9 Total Orders . | . . . . . . . . . . . . . . Ally Attacks 196 | . . . . . . . . . . 5 . 66 125 Total Damage 6112 | . . . . . . . . . . 85 . 1616 4411 Kills 43 | . . . . . . . . . . . . 12 31 Allies Corrupted . | . . . . . . . . . . . . . . Allies Melted . | . . . . . . . . . . . . . . Intel | -11 -10 -10 -9 -9 -9 -8 -8 -8 -7 -7 -7 -7 -6 ------- Run | Yrd Mat Min Mat Min Exi Min Mat Sto Fac Was Fac DSF Fac Active Infowar (turns) 7493 | . 608 255 1557 193 1074 47 1174 1233 371 184 24 146 627 A.S.S. 1 | . . . . . . . . 1 . . . . . Structural 5038 | . 608 255 1224 . . . 937 897 342 184 24 9 558 T.N.C. 6209 | . . . 1136 193 1074 47 1174 1233 371 184 24 146 627 Robot Analysis Total 3 | . . . 2 . . . . . . . . . 1 Derelict Logs Recovered . | . . . . . . . . . . . . . . Drone Launches . | . . . . . . . . . . . . . . Drone Recoveries . | . . . . . . . . . . . . . . Exploration | -11 -10 -10 -9 -9 -9 -8 -8 -8 -7 -7 -7 -7 -6 ------------- Run | Yrd Mat Min Mat Min Exi Min Mat Sto Fac Was Fac DSF Fac Turns Passed 7868 | . 983 255 1557 193 1074 47 1174 1233 371 184 24 146 627 Spaces Moved 3394 | 1 454 134 611 59 413 16 477 524 187 90 11 67 350 Core 3 | . . . . . . . 3 . . . . . . Treads 1414 | . . . . . . . 185 524 187 90 11 67 350 Legs 1977 | 1 454 134 611 59 413 16 289 . . . . . . Wheels . | . . . . . . . . . . . . . . Hover . | . . . . . . . . . . . . . . Flight . | . . . . . . . . . . . . . . Fastest Speed 120 | 120 120 190 190 260 260 260 120 160 160 162 163 163 163 Average Speed 191 | 120 187 190 200 260 260 260 184 165 160 162 163 163 163 Slowest Speed 600 | 120 190 190 260 260 260 260 600 167 162 163 163 163 163 Overloaded Moves . | . . . . . . . . . . . . . . Propulsion Burnouts . | . . . . . . . . . . . . . . Robots Hopped . | . . . . . . . . . . . . . . Potential Cave-ins . | . . . . . . . . . . . . . . Cave-ins Triggered . | . . . . . . . . . . . . . . Exploration Rate (%) 43 | 2 68 53 71 17 90 9 45 82 5 74 1 79 16 Regions Visited 13 Branch Regions 5 Pre-discovered Areas 2 | . . . . . 1 . . 1 . . . . . Known Exits Taken 3 | . . . 1 . . . 1 . . . 1 . . Unknown Exits Taken 7 | 1 1 1 . 1 1 1 . 1 . . . . . Scrap Searched . | . . . . . . . . . . . . . . Spaces Dug 8 | . . . . . . . 4 4 . . . . . Terrain Destroyed 111 | . . . 22 . . 27 37 25 . . . . . Melee 8 | . . . . . . . 4 4 . . . . . Projectile 17 | . . . 2 . . 1 5 9 . . . . . AOE 86 | . . . 20 . . 26 28 12 . . . . . Terrain Rammed . | . . . . . . . . . . . . . . Walls Destroyed . | . . . . . . . . . . . . . . Machines Disabled . | . . . . . . . . . . . . . . Actions | -11 -10 -10 -9 -9 -9 -8 -8 -8 -7 -7 -7 -7 -6 --------- Run | Yrd Mat Min Mat Min Exi Min Mat Sto Fac Was Fac DSF Fac Total 4273 | . 539 134 827 77 415 17 650 747 248 122 17 99 381 Wait 270 | . 7 . 70 . . . 27 73 40 23 7 21 2 Move 3382 | . 453 133 610 58 412 15 476 523 187 89 10 66 350 Hop . | . . . . . . . . . . . . . . Pick Up 71 | . 15 . 15 1 . . 18 15 2 1 . . 4 Fast Attach 47 | . 6 . 8 . 1 . 13 6 4 2 . 5 2 Attach 32 | . 1 . 7 1 . . 15 4 2 . . . 2 Detach 29 | . 5 . 8 . . . 8 2 2 . . 4 . Swap 51 | . 4 . 16 2 . . 9 15 2 . . . 3 Drop 87 | . 17 . 26 3 2 . 14 10 4 4 . 1 6 Fire 281 | . 26 . 65 12 . 2 63 91 5 3 . 2 12 Melee 10 | . . . . . . . 4 6 . . . . . Ram . | . . . . . . . . . . . . . . Kick 9 | . 5 1 2 . . . 1 . . . . . . Crush 4 | . . . . . . . 2 2 . . . . . Escape Stasis . | . . . . . . . . . . . . . . Rewire . | . . . . . . . . . . . . . . Trap . | . . . . . . . . . . . . . . Miscellaneous . | . . . . . . . . . . . . . . Route ------- -11/Scrapyard -10/Materials (discovered 4 exits: *Mat x2 / [*Min x2]) -10/Mines (discovered 2 exits: *Mat x2) -9/Materials (discovered 4 exits: *Mat x2 / *Min x2) -9/Mines -9/Exiles -8/Mines -8/Materials -8/Storage -7/Factory -7/Waste -7/Factory -7/DSF -6/Factory (discovered 4 exits: Fac x4) History --------- Turn | Location | Event 1 | -11/Scrapyard | Discovered new exit (range 0) 1 | -11/Scrapyard | Entered Materials 22 | -10/Materials | Discovered new exit (range 16) 258 | -10/Materials | Discovered new exit (range 8) 300 | -10/Materials | Build established: Mutant 620 | -10/Materials | Discovered new exit (range 11) 912 | -10/Materials | Discovered new exit (range 9) 984 | -10/Materials | Entered Mines 1121 | -10/Mines | Discovered new exit (range 6) 1220 | -10/Mines | Discovered new exit (range 8) 1235 | -10/Mines | Joined a pair of Derelicts in attacking an 0b10 outpost 1239 | -10/Mines | Entered Materials 1239 | -9/Materials | Evolved 2 slots: Utility x2 1617 | -9/Materials | Identified exit to Mines 1844 | -9/Materials | Discovered new exit (range 5) 2294 | -9/Materials | Central database locked down 2327 | -9/Materials | Build established: Scavenger-Mutant 2499 | -9/Materials | Discovered new exit (range 15) 2796 | -9/Materials | Entered Mines 2842 | -9/Mines | Core integrity fell below 50% 2943 | -9/Mines | Assembled infested the area 2976 | -9/Mines | Deemed a non-threat by the Exiles lab entrance 2976 | -9/Mines | Discovered new exit (range 5) 2989 | -9/Mines | Entered Exiles 3054 | -9/Exiles | Met 8R-AWN 3099 | -9/Exiles | Met EX-HEX 3166 | -9/Exiles | Met EX-BIN 3205 | -9/Exiles | Aligned with FarCom system 3208 | -9/Exiles | Given EX-Vault access code 3268 | -9/Exiles | Opened EX-Vault 3287 | -9/Exiles | Found YOLO Cannon 3340 | -9/Exiles | Warned to stay clear of 0b10 Research branches 3413 | -9/Exiles | Met EX-DEC 3460 | -9/Exiles | Learned location of Zion (-7) 3666 | -9/Exiles | Visited The Gauntlet 4032 | -9/Exiles | Discovered new exit (range 14) 4063 | -9/Exiles | Left Exiles lab with YOLO Cannon 4063 | -9/Exiles | Entered Mines 4071 | -8/Mines | Discovered new exit (range 16) 4110 | -8/Mines | Entered Materials 4110 | -8/Materials | Evolved 2 slots: Propulsion x2 4166 | -8/Materials | Identified exit to Storage 4777 | -8/Materials | Core integrity fell below 50% 4797 | -8/Materials | Lost 7 parts (1p3n1u2w) 4916 | -8/Materials | Found Prototype Device 4926 | -8/Materials | Lost 5 parts (4n1w) 5284 | -8/Materials | Entered Storage 5372 | -8/Storage | Identified Active Sensor Suite 5646 | -8/Storage | Build established: Scavenger-Skirmisher 6116 | -8/Storage | Garrison activated, responded to threat 6198 | -8/Storage | Core integrity fell below 20% 6503 | -8/Storage | Build established: Scavenger-Mutant 6504 | -8/Storage | Discovered new exit (range 9) 6517 | -8/Storage | Entered Factory 6517 | -7/Factory | Evolved 2 slots: Utility x2 6616 | -7/Factory | Repaired Structural Scanner 6888 | -7/Factory | Sucked down chute 6888 | -7/Factory | Entered Waste 6889 | -7/Waste | Joined by Warlord forces that had cleared the area 6912 | -7/Waste | Build established: Scavenger-Skirmisher 6938 | -7/Waste | A Compactor rumbled back to life 6939 | -7/Waste | Destroyed C-40 Crusher 7032 | -7/Waste | Discovered new exit (range 11) 7072 | -7/Waste | Entered Factory 7072 | -7/Factory | Accompanied by 19 allies 7089 | -7/Factory | Identified exit to DSF 7096 | -7/Factory | Entered DSF 7096 | -7/DSF | Accompanied by 19 allies 7109 | -7/DSF | Additional patrols routed to DSF 7202 | -7/DSF | Discovered new exit (range 13) 7210 | -7/DSF | Sterilization system engaged 7228 | -7/DSF | Lost 4 allies 7230 | -7/DSF | Ambient heat levels rising (+10) 7242 | -7/DSF | Entered Factory 7242 | -6/Factory | Accompanied by 14 allies 7242 | -6/Factory | Evolved 2 slots: Power x1, Utility x1 7377 | -6/Factory | Lost 3 allies 7592 | -6/Factory | First assault squad dispatched 7646 | -6/Factory | Spotted B-75 Beast 7655 | -6/Factory | Allies destroyed B-75 Beast 7852 | -6/Factory | Identified exit to Factory 7869 | -6/Factory | Self-destructed Last Messages --------------- Some scrappers have apparently evolved themselves to orient more towards combat purposes, adding armor and extra modified weapons. Whether this is to protect other derelicts or further their own goals remains to be seen, but they are rarely seen in any significant numbers so do not yet warrant additional attention. >>Access(Main) Found 4 level access points to Factory: (192,47) (11,28) (136,73) (112,105) Map updated. Feedback: System corruption (+1%). 07852_ ALERT: Suspicious activity at Terminal F016. Dispatching Investigation squad. 07862_ G-67 Veteran destroyed. 07862_ G-50 Soldier overheating. 07864_ G-50 Soldier destroyed. 07865_ Fusion Modulator explodes. 07865_ M-13 Machinist destroyed. Map ----- +----------------------------------------------------+ | ############+##########+#####???????????????? | | #### # # ???????????????? | | #### # # ???????????????? | | #### ! # # ???????????????? | | #### ! # # ???????????????? | | ??## + + ???????????????? | | ?? + # # ???????????????? | | #?##] + # ???????????????? | | #?## # # ???????????????? | | #?## !# # ???????????????? | | #?## ! # # ???????????????? | | #?######+###+####### # #???? | | ######## ### ####### # #???? | | ########/###+####### ################?? | | / # ################## | | ####### # # """"""""""" ## | | ####### = ; # """"T"""" ## | | ?????## ; # ## | | ?????## % " # ## | | ?????## " # "" ## | | ?????##! " # [[ "" ## | | ?????## % # [! """ ## | | ?????## * # """ # | | ?????## ! gg% + """ ## | | ?????## %m% # ! ## | | ?????## %@ ################## | | ?????#####;;; =%!# T ##### | | ????? ; = # ##??? | | ??????????? ! # # ! ##??? | | ??????????? ? # # ##??? | | ???????????? = ??? # # ##??? | | ??????????"" # = # """" """" ##??? | | ???????????"" + ! ] + """" """" ##??? | | ???????????"" """# = # """" """" ##??? | | ??????????????? ??"# u # """" """" ##??? | | ??????????????????"# # """" """" ##??? | | ?????????????????? # # """" """" ##??? | | ??????????????????## # ##??? | | ??????????????????## ###############??? | | ??????????????????## ##########???????? | | ??????????????????## ##???????????????? | | ??????????????????## ! ##???????????????? | | ?????????????????## !%=##???????????????? | | ?????????????????## %| ##???????????????? | | ????????????????## # ???????????????? | | ????????????????## [ ???????????????? | | ????????????????### [ # ???????????????? | | ????????????????????? # ???????????????? | | ???????????????????????? ?????????????????? | | ????????????????????????????????????????????? | +----------------------------------------------------+ Best States ------------- Heat Dissipation 56 Energy Generation 27 Energy Capacity 325 Matter Stores 300 Matter Capacity 300 Sight Range 16 Terrain Scan Density 10 Armor Coverage 450 Resistance: KI 20 Evasion (%) 55 Targeting Accuracy 8 Recoil Reduction 4 Authchip Count 3 Item Schematics ----------------- Seismic Detector | -10/Materials | Hacked Robot Schematics ------------------ None Fabricated ------------ Nothing Repaired ---------- Structural Scanner | 30% | -7/Factory Studied --------- None Alien Tech Used ----------------- None Achievements -------------- Hot Goods Some Acronyms Are Better Than Others Treasure Hunter Challenges ------------ None Game ------ Seed EnergyDamperBox Manual? 0 Play Time 01:45:26 Cumulative 101.5 hours Start 2026.03.28 @ 08:06:01 End 2026.03.28 @ 09:57:19 Sessions 1 Manual Loads 0 Difficulty Rogue Special Mode None Game No. 95 Rogue 50 Adventurer 45 Explorer 0 Win Type - Total 3 Types 2/0/0/1/0/0/0/0/0/0 Lore% 60 Gallery% 51 Achievement% 38 Wizard Run 0 Options --------- Layout 0 ASCII 0 Keyboard 1 Movement Numpad Keybinds 0 Fullscreen 1 Font 24/Smallcaps Map View 76x50 Zoom Use 0% Tactical HUD 1 Map Filters NONE Filters NONE Steam 1 RUN: 5cf721ea-92cc-4a1e-9b9d-bfa3fb1e70f0